Cogmind - Beta 12 @@@ ROGUE MODE // 2023.03.29 @ 21:34:27 Player: Palikka Result: Core destroyed Performance ------------- Evolutions (7) 3500 Regions Visited (18) 3600 Robots Destroyed (256) 1280 Value Destroyed (11506) 11506 Prototype IDs (22) 440 Alien Tech Used (0) 0 Bonus (7299) 7299 TOTAL SCORE: 27625 Bonus ------- High Alert Combat Kills 2871 Follower Combat Kills 1974 Entered DSFs 500 Met Warlord at Base 500 MAIN.C Attacked Warlord 500 Warlord Defense Kills 234 A7 Reached Mainframe 300 Met R17 at Cetus 500 Friendly Fire -80 Cogmind --------- Core Integrity 0/1300 Matter 200/300 Energy 700/700 System Corruption 5% Temperature Critical (556) Movement Flying (20) Location -3/Testing Parts ------- > --- POWER (2) -------- Vortex Chain Reactor > --- PROPULSION (7) --- Impulse Thruster Impulse Thruster Impulse Thruster Diametric Drive Diametric Drive Diametric Drive > --- UTILITY (9) ------ Enhanced Optical Array Spectral Analyzer Experimental Terrain Scan Processor Improved Melee Analysis Suite Advanced Actuator Array Improved Hacking Suite > --- WEAPON (3) ------- (None) > --- INVENTORY (5) ---- Large Storage Unit Experimental Matter Compressor (500) Advanced Actuator Array HERF Cannon Peak State ------------ > --- POWER ------------ Reinforced Fission Core Light Antimatter Reactor > --- PROPULSION ------- Flexi-carbon Leg Armored Leg Armored Leg Enhanced Flexi-carbon Leg Enhanced Flexi-carbon Leg Experimental Myomer Leg > --- UTILITY ---------- Advanced Cooling System Improved Coolant Injector High-capacity Storage Unit Advanced Targeting Computer Armor Integrity Analyzer Advanced Transmission Jammer Centrium Medium Armor Plating Improved Energy Mantle > --- WEAPON ----------- Advanced Plasma Cannon Matter Neutralizer Mass Driver > --- INVENTORY -------- Micro Fission Core Vortex Chain Reactor Flexi-carbon Leg Experimental Myomer Leg Improved Cooling System Improved Coolant Injector Experimental Matter Compressor Experimental Armor Integrity Analyzer Centrium Medium Armor Plating Long-range Tractor Beam Vortex Shotgun HERF Cannon HERF Cannon HERF Cannon Heavy Plasma Cannon Mass Driver Improved Proton Missile Launcher Precision Rocket Launcher Vortex Lance [Rating: 129] Favorites ----------- Power Light Angular Momentum Engine Engine Light Angular Momentum Engine Power Core Light Nuclear Core Reactor Quantum Reactor Propulsion Light Treads Treads Light Treads Leg Flexi-carbon Leg Wheel Compact Wheel Hover Unit Improved Gyrokinetic Inverter Flight Unit Impulse Thruster Array Utility Advanced Targeting Computer Device Improved Cooling System Storage High-capacity Storage Unit Processor Advanced Targeting Computer Hackware Improved Hacking Suite Protection Centrium Medium Armor Plating Weapon Cooled Particle Cannon Energy Gun Dispersion Rifle Energy Cannon Cooled Particle Cannon Ballistic Gun Gauss Rifle Ballistic Cannon Mass Driver Launcher Precision Rocket Launcher Slashing Weapon Power Sword Piercing Weapon Vortex Lance Build | -11 -10 -10 -10 -9 -8 -7 -7 -6 -6 -6 -5 -5 -5 -5 -4 -4 -3 -3 ------- Run | Jun Mat Min Exi Min Mat Fac DSF Fac Ext Cet Fac Upp Upp War Pro Fac Res Tes Slots Evolved 14 | . . . . . 4 2 . 2 . . 2 . . . . 2 2 . Power 1 | . . . . . . . . . . . . . . . . 1 . . Propulsion 5 | . . . . . 2 . . 1 . . . . . . . 1 1 . Utility 7 | . . . . . 2 1 . 1 . . 2 . . . . . 1 . Weapon 1 | . . . . . . 1 . . . . . . . . . . . . Parts Attached 294 | 7 8 1 1 . 40 5 8 55 18 12 39 1 7 17 1 51 13 10 Power 34 | 1 2 . . . 4 1 . 6 1 2 5 . 2 . . 9 . 1 Engine 11 | 1 2 . . . 1 . . 4 1 . 2 . . . . . . . Core 12 | . . . . . 3 1 . 2 . . 2 . 2 . . 2 . . Reactor 11 | . . . . . . . . . . 2 1 . . . . 7 . 1 Propulsion 92 | 2 1 . 1 . 7 . 1 20 15 3 10 . 1 4 . 16 5 6 Treads 20 | 2 1 . 1 . 7 . . 7 . . . . . . . . 2 . Leg 51 | . . . . . . . . 5 15 3 10 . 1 4 . 13 . . Wheel 9 | . . . . . . . 1 8 . . . . . . . . . . Hover 5 | . . . . . . . . . . . . . . . . 3 2 . Flight 7 | . . . . . . . . . . . . . . . . . 1 6 Utility 82 | 1 3 . . . 12 2 2 13 2 4 11 . 2 7 . 14 6 3 Device 35 | . 2 . . . 5 1 . 4 1 2 6 . . 6 . 6 1 1 Storage 8 | 1 1 . . . 2 . . . . . 1 . . 1 . 1 1 . Processor 14 | . . . . . . . . 5 . . 2 . . . . 1 4 2 Hackware 1 | . . . . . . . . . . . . . . . . 1 . . Protection 24 | . . . . . 5 1 2 4 1 2 2 . 2 . . 5 . . Artifact . | . . . . . . . . . . . . . . . . . . . Weapon 86 | 3 2 1 . . 17 2 5 16 . 3 13 1 2 6 1 12 2 . Energy Gun 3 | 1 . . . . 1 . . . . . . . . . . . 1 . Energy Cannon 23 | . . . . . . . . 2 . 2 7 1 1 2 . 8 . . Ballistic Gun 30 | 2 2 1 . . 13 1 3 7 . 1 . . . . . . . . Ballistic Cannon 11 | . . . . . . . . 2 . . 2 . . 2 1 4 . . Launcher 15 | . . . . . 2 1 2 4 . . 4 . 1 1 . . . . Special Weapon . | . . . . . . . . . . . . . . . . . . . Impact Weapon . | . . . . . . . . . . . . . . . . . . . Slashing Weapon 2 | . . . . . 1 . . 1 . . . . . . . . . . Piercing Weapon 2 | . . . . . . . . . . . . . . 1 . . 1 . Special Melee Weapon . | . . . . . . . . . . . . . . . . . . . Unidentified Prototypes 18 | . . . . . 2 . . 1 . 3 2 . . 5 . . 2 3 Corrupted Parts 1 | . . . . . . . . . . . 1 . . . . . . . System Corruption 4 | . . . . . . . . . . . 4 . . . . . . . Parts Lost 78 | . 2 1 . . 8 . 5 22 . . 7 . 3 . . 21 7 2 Power 11 | . 1 . . . 1 . 1 1 . . 2 . 1 . . 4 . . Propulsion 28 | . . . . . 3 . 4 7 . . 1 . 1 . . 8 3 1 Utility 22 | . . . . . 4 . . 5 . . 3 . 1 . . 4 4 1 Weapon 17 | . 1 1 . . . . . 9 . . 1 . . . . 5 . . Highest Loss Streak 11 | . 2 1 . . 2 . 4 6 . . 2 . 1 . . 11 4 2 To Critical Strikes 2 | . . . . . . . . . . . 1 . . . . 1 . . Average Slot Usage (%) 93 | . 93 100 100 100 98 100 97 92 100 100 95 94 97 98 100 85 52 39 Engine 3 | . 13 14 14 14 . . . 3 6 . 1 5 2 . . . . . Core 2 | . . . . . 8 7 6 2 . . . . 2 5 5 3 . . Reactor 1 | . . . . . . . . . . 5 2 . . . . 4 . 1 Treads 10 | . 28 28 28 28 36 30 25 8 2 . . . . . . . 1 . Leg 15 | . . . . . . . . 2 29 33 28 29 29 29 29 25 . . Wheel 2 | . . . . . . . 3 14 1 . . . . . . . . . Device 9 | . 8 14 14 14 12 15 15 10 6 6 7 5 5 7 17 13 4 1 Storage 6 | . 14 14 14 14 9 7 7 6 6 6 5 5 5 5 5 4 2 2 Processor 12 | . . . . . . . . 11 20 20 21 23 23 21 17 10 15 14 Protection 6 | . . . . . 13 15 15 9 6 6 5 5 8 9 5 6 2 . Energy Cannon 6 | . . . . . . . . 1 13 19 13 6 8 9 11 7 . . Ballistic Gun 9 | . 28 28 28 28 17 21 22 15 . . . . . . . . . . Ballistic Cannon 1 | . . . . . . . . 2 . . 2 5 5 4 3 4 . . Naked Turns 47 | . . . . . . . . . . . . . . . . 47 . . Heaviest Build 127 | 11 28 28 28 28 58 67 69 79 82 89 107 99 99 107 107 127 12 42 Greatest Support 133 | 40 40 40 40 40 80 80 80 52 110 116 116 100 100 117 108 133 26 42 Greatest Overweight (x) 6 | . . . . . . . 5 6 2 . 1 . . . . 1 1 . Average Overweight (x) . | . . . . . . . 1 2 . . . . . . . . . . Largest Inventory Capacity 20 | 8 15 15 15 15 20 20 20 20 20 20 20 20 20 20 20 20 5 5 Average Capacity 17 | 7 14 15 15 15 15 20 20 20 20 20 20 20 20 20 20 17 5 5 Most Carried 20 | 3 15 15 15 15 17 20 20 20 20 20 20 20 20 20 20 20 5 5 Average Carried 17 | . 8 14 14 15 14 19 19 19 19 19 19 20 18 19 20 16 4 4 Final Capacity 20 | 8 15 15 15 15 20 20 20 20 20 20 20 20 20 20 20 5 5 5 Final Carried 20 | 1 15 15 15 15 17 20 20 20 20 20 20 20 18 20 20 5 5 4 Class Distribution -------------------- 36% | Scavenger-Gunner 25% | Scavenger-Mutant 21% | Mutant 8% | Gunner 3% | Scavenger-Tank 3% | Tank Dominant Class ---------------- Mutant | -10/Materials Mutant | -10/Mines Mutant | -10/Exiles Mutant | -9/Mines Scavenger-Mutant | -8/Materials Scavenger-Tank | -7/Factory Scavenger-Tank | -7/DSF Scavenger-Gunner | -6/Factory Scavenger-Mutant | -6/Extension Scavenger-Gunner | -6/Cetus Scavenger-Gunner | -5/Factory Scavenger-Gunner | -5/Upper Caves Scavenger-Gunner | -5/Upper Caves Scavenger-Gunner | -5/Warlord Scavenger-Gunner | -4/Proximity Caves Scavenger-Gunner | -4/Factory Mutant | -3/Research Mutant | -3/Testing Resources | -11 -10 -10 -10 -9 -8 -7 -7 -6 -6 -6 -5 -5 -5 -5 -4 -4 -3 -3 ----------- Run | Jun Mat Min Exi Min Mat Fac DSF Fac Ext Cet Fac Upp Upp War Pro Fac Res Tes Matter Collected 8224 | 186 459 26 . 10 1052 33 256 2355 288 133 1197 46 214 775 65 982 147 . Remotely 312 | . . . . . . . . . . . . . . 312 . . . . Salvage Created 12041 | . 451 81 . . 1229 33 169 2855 486 55 3254 74 317 115 226 2516 180 . Parts 531 | . 30 3 . . 74 6 8 110 28 3 140 2 19 5 19 79 5 . Haulers Intercepted 18 | . 2 . . . 3 . 1 3 1 . 7 . . . . . 1 . Recyclers Shooed 15 | . 1 . . . 1 . . 9 3 . 1 . . . . . . . Parts Field Recycled . | . . . . . . . . . . . . . . . . . . . Retrieved Matter . | . . . . . . . . . . . . . . . . . . . Parts Self-Destructed 40 | . . . . . . . . . . . . 2 19 . 19 . . . Prevented . | . . . . . . . . . . . . . . . . . . . Kills | -11 -10 -10 -10 -9 -8 -7 -7 -6 -6 -6 -5 -5 -5 -5 -4 -4 -3 -3 ------- Run | Jun Mat Min Exi Min Mat Fac DSF Fac Ext Cet Fac Upp Upp War Pro Fac Res Tes Combat Hostiles Destroyed 204 | . 14 2 . . 26 3 6 42 6 1 43 1 10 2 4 43 1 . Melee 1 | . . . . . . . . . . . . . . . . . 1 . Guns 58 | . 14 2 . . 23 . 2 17 . . . . . . . . . . Cannons 90 | . . . . . . . . 11 6 1 33 1 5 2 4 27 . . AOE 43 | . . . . . 3 3 4 11 . . 7 . 5 . . 10 . . Classes Destroyed 19 | . 3 . . . 4 . 2 6 1 . 3 . . . . . . . Worker 8 | . . . . . . . . 3 . . . . . . . 5 . . Builder 1 | . . . . . . . . . . . 1 . . . . . . . Tunneler 3 | . . . . . . . . 1 . . 1 . . . . 1 . . Hauler 18 | . 2 . . . 3 . 1 3 1 . 7 . . . . . 1 . Recycler 9 | . . . . . 2 . . 5 . . 1 . . . . 1 . . Mechanic 3 | . . . . . . . . . . . 2 . . . . 1 . . Operator 1 | . . . . . . . . . . . 1 . . . . . . . Watcher 13 | . . . . . 1 . . 3 . . 6 . . . . 2 1 . Swarmer 42 | . 9 . . . 7 3 . 8 . . 6 . 5 . . 3 1 . Grunt 89 | . 5 2 . . 13 . 2 18 1 1 15 . 2 2 . 28 . . Brawler 6 | . . . . . . . . 1 . . 1 . . . . 4 . . Duelist 11 | . . . . . . . 1 3 . . 3 . 1 . . 3 . . Protector 2 | . . . . . . . . 1 . . 1 . . . . . . . Sentry 13 | . . . . . 3 . . 3 2 . 4 1 . . . . . . Specialist 5 | . . . . . . . 3 2 . . . . . . . . . . Hunter 7 | . . . . . 3 . . 1 . . 1 . 2 . . . . . Programmer 26 | . . . . . . . . 4 1 . 12 . . . 4 5 . . Heavy 1 | . . . . . . . . 1 . . . . . . . . . . Behemoth 2 | . . . . . . . . . 2 . . . . . . . . . Best Kill Streak 11 | . 3 2 . . 5 3 5 5 2 1 7 1 8 2 2 11 1 . Combat Bots Only 10 | . 3 2 . . 5 3 5 5 2 1 5 1 8 2 2 10 1 . Max Kills in Single Turn 11 | . 1 1 . . 2 3 1 3 1 1 4 1 3 1 1 11 1 . Gunslinging . | . . . . . . . . . . . . . . . . . . . Exploded 8 | . . . . . 2 3 1 2 . . 3 . 3 . . 8 . . Melee 1 | . . . . . . . . . . . . . . . . . 1 . Uniques/NPCs Destroyed . | . . . . . . . . . . . . . . . . . . . Combat | -11 -10 -10 -10 -9 -8 -7 -7 -6 -6 -6 -5 -5 -5 -5 -4 -4 -3 -3 -------- Run | Jun Mat Min Exi Min Mat Fac DSF Fac Ext Cet Fac Upp Upp War Pro Fac Res Tes Damage Taken 19195 | . 538 161 . 15 1563 110 1267 3517 479 214 3270 185 547 92 93 4668 1763 713 Core 3128 | . 52 . . . 147 . 274 242 99 81 273 23 21 . 10 511 834 561 Absorbed by Shields 494 | . . . . . . . . . 53 48 30 . . 90 10 263 . . Redirected to Shielding 284 | . . . . . 53 . 30 90 . . . . . . . 67 44 . Regen/Repaired (Parts) 256 | . . . . . . . . . . . 110 . . 146 . . . . Core Remaining (%) 69 | 100 . . . 79 73 . 60 . . 50 . . . . 67 55 . . Volleys Fired 607 | . 58 11 . . 111 2 18 129 22 10 126 5 10 15 5 85 . . Largest 3 | . 2 2 . . 2 3 3 3 2 3 3 3 3 3 3 3 . . Hottest 260 | . 40 40 . . 56 84 84 113 60 150 245 245 245 245 245 260 . . Shots Fired 1384 | . 115 21 . . 215 4 28 327 39 29 314 11 22 27 15 217 . . Gun 638 | . 115 21 . . 208 3 15 276 . . . . . . . . . . Cannon 708 | . . . . . . . . 39 39 29 311 11 20 27 15 217 . . Launcher 38 | . . . . . 7 1 13 12 . . 3 . 2 . . . . . Special . | . . . . . . . . . . . . . . . . . . . Kinetic 860 | . 115 21 . . 208 3 15 308 . . 65 3 7 15 5 95 . . Thermal 466 | . . . . . . . . 7 39 29 246 8 13 12 10 102 . . Explosive 24 | . . . . . . 1 13 7 . . 1 . 2 . . . . . Electromagnetic 34 | . . . . . 7 . . 5 . . 2 . . . . 20 . . Robot Hit Streak 32 | . 15 6 . . 22 4 10 18 24 13 32 3 4 3 11 14 . . Robot Miss Streak 7 | . 4 3 . . 6 2 4 7 3 1 3 2 1 2 1 4 . . Penetration Max 1 | . . . . . . . . 1 . . . . . . . 1 . . Secondary Targets 6 | . 3 . . . . . . 3 . . . . . . . . . . Max Gunslinging Chain 1 | . 1 . . . . . . 1 . . . . . . . . . . Shots Hit Robots 944 | . 71 16 . . 160 3 21 231 32 24 213 5 11 10 11 132 4 . Core Hits 553 | . 27 7 . . 124 4 18 128 16 8 107 2 15 4 5 84 4 . Critical Kills 14 | . 1 . . . 1 . . 1 . . 5 . . . . 6 . . Critical Parts Destroyed 5 | . 1 . . . . . . 4 . . . . . . . . . . Critical Strikes 29 | . 2 . . . 1 . . 8 . . 5 . 1 1 . 10 1 . Meltdown 11 | . . . . . . . . . . . 5 . . . . 6 . . Destroy 8 | . 2 . . . 1 . . 5 . . . . . . . . . . Blast 9 | . . . . . . . . 3 . . . . 1 1 . 4 . . Sunder 1 | . . . . . . . . . . . . . . . . . 1 . Melee Attacks 12 | . . . . . . . . 1 . . . . . 1 . . 10 . Impact . | . . . . . . . . . . . . . . . . . . . Slashing 1 | . . . . . . . . 1 . . . . . . . . . . Piercing . | . . . . . . . . . . . . . . . . . . . Entropic 11 | . . . . . . . . . . . . . . 1 . . 10 . Sneak Attacks 2 | . . . . . . . . . . . . . . . . . 2 . Combat Hostiles . | . . . . . . . . . . . . . . . . . . . Follow-up Attacks . | . . . . . . . . . . . . . . . . . . . Damage Inflicted 31574 | . 755 137 . . 2181 204 1175 7118 924 707 8048 173 726 343 454 8066 563 . Guns 7589 | . 755 137 . . 1943 34 164 4556 . . . . . . . . . . Cannons 16020 | . . . . . . . . 812 901 707 7151 173 217 343 454 5262 . . Explosions 7354 | . . . . . 238 170 986 1750 . . 897 . 509 . . 2804 . . Melee 514 | . . . . . . . . . . . . . . . . . 514 . Ramming 97 | . . . . . . . 25 . 23 . . . . . . . 49 . Kinetic 12325 | . 755 137 . . 1943 34 164 5247 . . 1428 42 86 211 91 2187 . . Thermal 11517 | . . . . . . . . 229 901 707 5723 131 131 132 363 3200 . . Explosive 5392 | . . . . . . 170 986 1137 . . 539 . 509 . . 2051 . . Electromagnetic 1729 | . . . . . 238 . . 505 . . 358 . . . . 628 . . Impact . | . . . . . . . . . . . . . . . . . . . Slashing . | . . . . . . . . . . . . . . . . . . . Piercing . | . . . . . . . . . . . . . . . . . . . Entropic 514 | . . . . . . . . . . . . . . . . . 514 . Highest Corruption 13 | . . . . . . . . 6 3 3 12 12 13 13 . 2 5 5 Average Corruption 5 | . . . . . . . . 4 3 3 7 12 12 13 . 1 3 5 Corruption Purged 6 | . . . . . . . . 6 . . . . . . . . . . Corruption Blocked . | . . . . . . . . . . . . . . . . . . . Effects 162 | . . . . . . . . 40 12 11 52 10 16 1 . 15 2 3 Message Errors 38 | . . . . . . . . 12 3 1 12 1 6 . . 2 1 . Matter Fused 37 | . . . . . . . . 8 5 4 12 1 4 . . 3 . . Heat Flow Errors 21 | . . . . . . . . 5 2 . 2 3 2 . . 5 . 2 Energy Discharges 21 | . . . . . . . . 1 2 2 11 3 1 . . . . 1 Parts Rejected 2 | . . . . . . . . . . . 1 . . . . . 1 . Data Loss (minor) 16 | . . . . . . . . 5 . 1 7 . 1 . . 2 . . Data Loss (major) 11 | . . . . . . . . 3 . . 4 2 . 1 . 1 . . Misfires 6 | . . . . . . . . 1 . 2 1 . 1 . . 1 . . Weapon Failures 10 | . . . . . . . . 5 . 1 2 . 1 . . 1 . . Overload Shots 1 | . . . . . . . . . . 1 . . . . . . . . Overflow Damage 1028 | . . . . . 6 . 43 76 . . 128 . 86 . . 430 259 . Projectiles 208 | . . . . . . . . . . . 128 . . . . 80 . . Explosions 561 | . . . . . 6 . 43 76 . . . . 86 . . 350 . . Melee 259 | . . . . . . . . . . . . . . . . . 259 . Knockbacks 46 | . . . . . . . . 5 . . 11 . . . 1 29 . . Impact . | . . . . . . . . . . . . . . . . . . . Kinetic 42 | . . . . . . . . 5 . . 10 . . . 1 26 . . Secondary 4 | . . . . . . . . . . . 1 . . . . 3 . . Self-Inflicted Damage 377 | . . . . . 8 . 12 34 . . . . 39 . . 264 20 . Shots 7 | . . . . . 1 . . 1 . . . . 1 . . 4 . . Rammed 20 | . . . . . . . 3 . . . . . . . . . 17 . Targets Rammed 21 | . . . . . . . 3 . 1 . . . . . . . 17 . Kicked 1 | . . . . . . . . . 1 . . . . . . . . . Crushed . | . . . . . . . . . . . . . . . . . . . Highest Temperature 725 | . 6 5 . . 15 . . 206 181 2 323 324 166 124 180 240 . 725 Average Temperature 98 | . 3 5 . . 8 . . 62 91 2 88 141 55 49 70 108 . 291 Received Heat Transfer 3971 | . 186 93 . . 591 . 27 816 75 21 994 63 18 34 . 897 87 69 Effects 5 | . . . . . . . . . . . . . . . . . . 5 Shutdowns 1 | . . . . . . . . . . . . . . . . . . 1 Energy Bleed 1 | . . . . . . . . . . . . . . . . . . 1 Damage (core) 3 | . . . . . . . . . . . . . . . . . . 3 Siege Activations . | . . . . . . . . . . . . . . . . . . . Robots Corrupted 3 | . . . . . . . . 3 . . . . . . . . . . Combat Hostiles 3 | . . . . . . . . 3 . . . . . . . . . . Parts Fried 8 | . . . . . 1 . . 4 1 . 1 . . . . 1 . . Impact Corruptions . | . . . . . . . . . . . . . . . . . . . Robots Melted 12 | . . . . . . . . . . . 6 . . . . 6 . . Combat Hostiles 9 | . . . . . . . . . . . 3 . . . . 6 . . Parts Melted 49 | . . . . . . . . . . . 35 . 1 . 2 11 . . Heat Transferred 14732 | . . . . . . . . 248 1184 993 7524 200 200 200 450 3733 . . Parts Sabotaged 11 | . . . . . . . . . . . . . . . . 11 . . Parts Stolen . | . . . . . . . . . . . . . . . . . . . Parts Stripped . | . . . . . . . . . . . . . . . . . . . Power Chain Reactions 1 | . . . . . . . . 1 . . . . . . . . . . Missiles Intercepted . | . . . . . . . . . . . . . . . . . . . Alert | -11 -10 -10 -10 -9 -8 -7 -7 -6 -6 -6 -5 -5 -5 -5 -4 -4 -3 -3 ------- Run | Jun Mat Min Exi Min Mat Fac DSF Fac Ext Cet Fac Upp Upp War Pro Fac Res Tes Peak Influence 1760 | . 217 50 . 77 228 164 335 979 847 941 1368 . . . . 1760 885 438 Initial 678 | . . 2 . . 29 81 114 162 479 412 414 . . . . 56 678 383 Average 464 | . 77 46 . 43 101 94 215 416 649 711 713 . . . . 825 749 380 Maximum Alert Level 5 | . 1 . . . 1 . 1 3 3 3 4 . . . . 5 3 2 Low Security (%) 37 | 100 93 100 . 100 97 100 52 32 . . . . . . . 12 . . Level 1 8 | . 6 . . . 2 . 47 15 . . 6 . . . . 10 . 90 Level 2 23 | . . . . . . . . 27 57 44 36 . . . . 20 35 10 Level 3 25 | . . . . . . . . 23 42 55 47 . . . . 15 64 . Level 4 5 | . . . . . . . . . . . 8 . . . . 35 . . Level 5 . | . . . . . . . . . . . . . . . . 5 . . High Security . | . . . . . . . . . . . . . . . . . . . Max Security . | . . . . . . . . . . . . . . . . . . . Squads Dispatched 47 | . 2 . . . 3 . 2 12 2 . 11 . . . . 12 2 1 Investigation 4 | . 1 . . . . . . 1 1 . . . . . . 1 . . Extermination 11 | . . . . . . . . 3 . . 5 . . . . 2 1 . Reinforcement 19 | . 1 . . . 3 . 2 7 1 . 1 . . . . 2 1 1 Assault 13 | . . . . . . . . 1 . . 5 . . . . 7 . . Garrison . | . . . . . . . . . . . . . . . . . . . Intercept . | . . . . . . . . . . . . . . . . . . . Searches Triggered . | . . . . . . . . . . . . . . . . . . . Construction Impeded 2 | . . . . . . . . 1 . . . . . . . 1 . . Haulers Reinforced 1 | . . . . . . . . 1 . . . . . . . . . . Active Scanning Responses . | . . . . . . . . . . . . . . . . . . . Cargo Convoy Interrupts . | . . . . . . . . . . . . . . . . . . . Stealth | -11 -10 -10 -10 -9 -8 -7 -7 -6 -6 -6 -5 -5 -5 -5 -4 -4 -3 -3 --------- Run | Jun Mat Min Exi Min Mat Fac DSF Fac Ext Cet Fac Upp Upp War Pro Fac Res Tes Distress Signals 14 | . 3 . . . 4 . . 2 . 2 1 . . . . 1 1 . Communications Jammed 45 | . . . . . . . . 25 . . . . . . . 20 . . Distress Signals 38 | . . . . . . . . 18 . . . . . . . 20 . . Times Spotted 408 | . 25 2 . 3 41 3 11 60 18 14 77 4 12 19 4 82 27 6 Peak Tracking Total 20 | . 4 2 . 3 5 3 3 5 4 5 6 3 5 12 2 20 14 6 Tactical Retreats 31 | . 2 . . . . . 3 4 1 . 5 . . . . 10 5 1 Traps | -11 -10 -10 -10 -9 -8 -7 -7 -6 -6 -6 -5 -5 -5 -5 -4 -4 -3 -3 ------- Run | Jun Mat Min Exi Min Mat Fac DSF Fac Ext Cet Fac Upp Upp War Pro Fac Res Tes Traps Triggered 20 | . 1 . . . . . . 10 3 . 3 . . . . 2 1 . Indirectly . | . . . . . . . . . . . . . . . . . . . Trap Hack Attempts . | . . . . . . . . . . . . . . . . . . . Triggered . | . . . . . . . . . . . . . . . . . . . Disarmed . | . . . . . . . . . . . . . . . . . . . Reprogrammed . | . . . . . . . . . . . . . . . . . . . Reused . | . . . . . . . . . . . . . . . . . . . Traps Extracted . | . . . . . . . . . . . . . . . . . . . Installed . | . . . . . . . . . . . . . . . . . . . Triggered 8 | . . . . . . . . . . . . . . 8 . . . . Machines | -11 -10 -10 -10 -9 -8 -7 -7 -6 -6 -6 -5 -5 -5 -5 -4 -4 -3 -3 ---------- Run | Jun Mat Min Exi Min Mat Fac DSF Fac Ext Cet Fac Upp Upp War Pro Fac Res Tes Machines Disabled 68 | . 1 . . . . . 1 15 1 2 16 . . 2 . 30 . . Max in Single Turn 16 | . 1 . . . . . 1 3 . 1 4 . . 1 . 16 . . Garrison Access 4 | . . . . . . . . . . . 2 . . . . 2 . . Machines Repaired . | . . . . . . . . . . . . . . . . . . . Machines Sabotaged . | . . . . . . . . . . . . . . . . . . . Overloaded Fab Kills . | . . . . . . . . . . . . . . . . . . . Hacking | -11 -10 -10 -10 -9 -8 -7 -7 -6 -6 -6 -5 -5 -5 -5 -4 -4 -3 -3 --------- Run | Jun Mat Min Exi Min Mat Fac DSF Fac Ext Cet Fac Upp Upp War Pro Fac Res Tes Machines Accessed 69 | . 7 . 2 1 6 3 . 9 13 1 15 . . 2 . 7 2 1 Terminals 55 | . 7 . . . 6 3 . 7 13 1 10 . . . . 5 2 1 Fabricators 1 | . . . . . . . . 1 . . . . . . . . . . Repair Stations 3 | . . . . . . . . . . . 3 . . . . . . . Recycling Units . | . . . . . . . . . . . . . . . . . . . Scanalyzers . | . . . . . . . . . . . . . . . . . . . Garrison Access 5 | . . . . . . . . 1 . . 2 . . . . 2 . . Total Hacks 142 | . 19 . 2 1 17 6 . 15 24 3 28 . . 2 . 18 6 1 Successful 66 | . 8 . 2 1 12 3 . 6 8 . 10 . . 2 . 11 3 . Failed 76 | . 11 . . . 5 3 . 9 16 3 18 . . . . 7 3 1 Catastrophic 16 | . 1 . . . . 1 . 1 4 . 5 . . . . 2 2 . Database Lockouts . | . . . . . . . . . . . . . . . . . . . Manual 39 | . 6 . . . 9 2 . 3 5 1 10 . . . . 2 1 . Terminals 121 | . 19 . . . 17 6 . 12 24 3 18 . . . . 15 6 1 Fabricators 1 | . . . . . . . . 1 . . . . . . . . . . Repair Stations 8 | . . . . . . . . . . . 8 . . . . . . . Recycling Units . | . . . . . . . . . . . . . . . . . . . Scanalyzers . | . . . . . . . . . . . . . . . . . . . Garrison Access 7 | . . . . . . . . 2 . . 2 . . . . 3 . . Terminal Hacks 47 | . 6 . 2 1 7 2 . 4 8 . 4 . . 2 . 9 2 . Record 2 | . . . 2 . . . . . . . . . . . . . . . Robot Analysis 1 | . . . . . . . . . . . . . . . . 1 . . Prototype ID Bank 2 | . 1 . . . 1 . . . . . . . . . . . . . Open Door 11 | . . . . 1 . . . 1 7 . . . . 2 . . . . Open DSF 3 | . . . . . . 1 . . . . 1 . . . . 1 . . Level Access Points 1 | . . . . . 1 . . . . . . . . . . . . . Branch Access Points 1 | . 1 . . . . . . . . . . . . . . . . . Terminal Index 1 | . . . . . 1 . . . . . . . . . . . . . Alert Level 10 | . 2 . . . 2 1 . 2 . . . . . . . 2 1 . Unreport Threat 6 | . 1 . . . 1 . . . . . 1 . . . . 3 . . Locate Traps 7 | . 1 . . . 1 . . . 1 . 2 . . . . 1 1 . Recall Investigation 1 | . . . . . . . . . . . . . . . . 1 . . Hauler Manifests 1 | . . . . . . . . 1 . . . . . . . . . . Fabricator Hacks 1 | . . . . . . . . 1 . . . . . . . . . . Network Status 1 | . . . . . . . . 1 . . . . . . . . . . Repair Station Hacks 3 | . . . . . . . . . . . 3 . . . . . . . Scan Component 2 | . . . . . . . . . . . 2 . . . . . . . Repair 1 | . . . . . . . . . . . 1 . . . . . . . Recycling Unit Hacks . | . . . . . . . . . . . . . . . . . . . Scanalyzer . | . . . . . . . . . . . . . . . . . . . Garrison Access Hacks 3 | . . . . . . . . . . . 2 . . . . 1 . . Seal Access 3 | . . . . . . . . . . . 2 . . . . 1 . . Unauthorized Hacks 12 | . 2 . . . 5 1 . 1 . . 1 . . . . 1 1 . Terminals 12 | . 2 . . . 5 1 . 1 . . 1 . . . . 1 1 . Botnet 12 | . 2 . . . 5 1 . 1 . . 1 . . . . 1 1 . Fabricators . | . . . . . . . . . . . . . . . . . . . Repair Stations . | . . . . . . . . . . . . . . . . . . . Recycling Units . | . . . . . . . . . . . . . . . . . . . Scanalyzers . | . . . . . . . . . . . . . . . . . . . Garrison Access . | . . . . . . . . . . . . . . . . . . . Data Cores Recovered 1 | . . . . . . . . . . . 1 . . . . . . . Used . | . . . . . . . . . . . . . . . . . . . Hacking Detections 48 | . 6 . . . 6 2 . 4 9 1 11 . . . . 6 2 1 Full Trace Events 2 | . . . . . . . . . 1 . . . . . . 1 . . Feedback Events . | . . . . . . . . . . . . . . . . . . . Feedback Blocked . | . . . . . . . . . . . . . . . . . . . Robot Schematics Acquired . | . . . . . . . . . . . . . . . . . . . Robots Built . | . . . . . . . . . . . . . . . . . . . Authchips . | . . . . . . . . . . . . . . . . . . . Time . | . . . . . . . . . . . . . . . . . . . Total Robot Build Rating . | . . . . . . . . . . . . . . . . . . . Part Schematics Acquired . | . . . . . . . . . . . . . . . . . . . Parts Built . | . . . . . . . . . . . . . . . . . . . Authchips . | . . . . . . . . . . . . . . . . . . . Time . | . . . . . . . . . . . . . . . . . . . Total Part Build Rating . | . . . . . . . . . . . . . . . . . . . Parts Repaired 1 | . . . . . . . . . . . 1 . . . . . . . Time 70 | . . . . . . . . . . . 70 . . . . . . . Parts Recycled . | . . . . . . . . . . . . . . . . . . . Recycled Matter . | . . . . . . . . . . . . . . . . . . . Retrieved Matter . | . . . . . . . . . . . . . . . . . . . Retrieved Components . | . . . . . . . . . . . . . . . . . . . Parts Scanalyzed . | . . . . . . . . . . . . . . . . . . . Part Schematics Acquired . | . . . . . . . . . . . . . . . . . . . Parts Damaged . | . . . . . . . . . . . . . . . . . . . Bothacking | -11 -10 -10 -10 -9 -8 -7 -7 -6 -6 -6 -5 -5 -5 -5 -4 -4 -3 -3 ------------ Run | Jun Mat Min Exi Min Mat Fac DSF Fac Ext Cet Fac Upp Upp War Pro Fac Res Tes Used RIF Installer . | . . . . . . . . . . . . . . . . . . . Robots Hacked . | . . . . . . . . . . . . . . . . . . . Non-combat . | . . . . . . . . . . . . . . . . . . . Combat . | . . . . . . . . . . . . . . . . . . . Robot Hacks Applied . | . . . . . . . . . . . . . . . . . . . Relay Couplers Released 4 | . . . . . . . . . . . . . . . . 4 . . Machine Destruction 4 | . . . . . . . . . . . . . . . . 4 . . Fabnet Peak Effective % . | . . . . . . . . . . . . . . . . . . . Robots Rewired 12 | . . . . . . . . . 7 . . . . 5 . . . . Allies Hacked 1 | . . . . . . . . . . . . . . . 1 . . . Hacks Repelled . | . . . . . . . . . . . . . . . . . . . Allies | -11 -10 -10 -10 -9 -8 -7 -7 -6 -6 -6 -5 -5 -5 -5 -4 -4 -3 -3 -------- Run | Jun Mat Min Exi Min Mat Fac DSF Fac Ext Cet Fac Upp Upp War Pro Fac Res Tes Total Allies 31 | . . . . 3 . . . . 18 2 3 . . 5 . . . . Largest Group 10 | . . . . 3 2 . . . 10 10 5 . . 5 2 1 . . Highest-Rated Group 464 | . . . . 40 24 . . . 401 464 258 . . 242 111 65 . . Highest-Rated Ally 159 | . . . . 16 16 . . . 159 159 159 . . 65 65 65 . . Total Orders . | . . . . . . . . . . . . . . . . . . . Ally Attacks 278 | . . . . 11 6 . . . 106 71 45 . . 32 7 . . . Total Damage 6646 | . . . . 72 74 . . . 2462 2165 751 . . 1057 65 . . . Kills 52 | . . . . 3 1 . . . 18 18 6 . . 6 . . . . Allies Corrupted 1 | . . . . . . . . . . . . . . . . 1 . . Allies Melted 2 | . . . . . . . . . . 2 . . . . . . . . Intel | -11 -10 -10 -10 -9 -8 -7 -7 -6 -6 -6 -5 -5 -5 -5 -4 -4 -3 -3 ------- Run | Jun Mat Min Exi Min Mat Fac DSF Fac Ext Cet Fac Upp Upp War Pro Fac Res Tes Robot Analysis Total 1 | . . . . . . . . . . . . . . . . 1 . . Derelict Logs Recovered 4 | . . . . 1 . . . . . . . 1 1 . 1 . . . Drone Launches . | . . . . . . . . . . . . . . . . . . . Drone Recoveries . | . . . . . . . . . . . . . . . . . . . Exploration | -11 -10 -10 -10 -9 -8 -7 -7 -6 -6 -6 -5 -5 -5 -5 -4 -4 -3 -3 ------------- Run | Jun Mat Min Exi Min Mat Fac DSF Fac Ext Cet Fac Upp Upp War Pro Fac Res Tes Turns Passed 16643 | 78 1319 303 384 269 2058 206 276 2825 916 438 3880 239 399 987 258 1272 427 109 Spaces Moved 10627 | 45 676 171 239 158 1015 118 119 1664 562 290 2579 184 292 677 192 863 629 154 Core 395 | 5 . . . . . . . . . . . . . . . 285 79 26 Treads 2552 | 40 676 171 239 158 1015 118 74 61 . . . . . . . . . . Legs 5301 | . . . . . . . . . 509 290 2579 184 292 677 192 578 . . Wheels 1701 | . . . . . . . 45 1603 53 . . . . . . . . . Hover 102 | . . . . . . . . . . . . . . . . . 102 . Flight 576 | . . . . . . . . . . . . . . . . . 448 128 Fastest Speed 20 | 50 160 160 160 160 160 160 160 108 120 120 116 122 122 114 120 50 45 20 Average Speed 124 | 147 160 160 160 160 160 160 161 131 121 120 121 122 122 120 120 94 55 26 Slowest Speed 400 | 160 160 160 160 160 160 160 165 400 190 120 192 122 122 122 120 186 100 50 Overloaded Moves . | . . . . . . . . . . . . . . . . . . . Propulsion Burnouts . | . . . . . . . . . . . . . . . . . . . Robots Hopped 4 | . . . . . . . . . . . . . . . . . 2 2 Cave-ins Triggered . | . . . . . . . . . . . . . . . . . . . Exploration Rate (%) 51 | 4 95 32 61 39 77 3 74 48 73 85 65 53 44 91 48 30 24 30 Regions Visited 18 Branch Regions 10 Pre-discovered Areas . | . . . . . . . . . . . . . . . . . . . Known Exits Taken 8 | . 1 . . . 1 1 . . . 1 1 1 1 . 1 . . . Unknown Exits Taken 9 | 1 . 1 1 1 . . . 1 1 . . . . 1 . 1 1 . Scrap Searched 4 | . . 1 . . . . . . . . . 1 1 . 1 . . . Spaces Dug 42 | . . . . . . . . 1 . . 9 2 20 2 . 4 4 . Terrain Destroyed 466 | . . . . . . 6 48 146 2 2 70 7 48 5 4 124 4 . Melee 5 | . . . . . . . . 1 . . . . . . . . 4 . Projectile 141 | . . . . . . . 1 10 2 2 50 7 11 5 4 49 . . AOE 320 | . . . . . . 6 47 135 . . 20 . 37 . . 75 . . Terrain Rammed . | . . . . . . . . . . . . . . . . . . . Walls Destroyed . | . . . . . . . . . . . . . . . . . . . Machines Disabled . | . . . . . . . . . . . . . . . . . . . Actions | -11 -10 -10 -10 -9 -8 -7 -7 -6 -6 -6 -5 -5 -5 -5 -4 -4 -3 -3 --------- Run | Jun Mat Min Exi Min Mat Fac DSF Fac Ext Cet Fac Upp Upp War Pro Fac Res Tes Total 12890 | 55 815 184 241 175 1264 133 180 2037 769 365 3089 189 314 824 208 1143 689 216 Wait 781 | . 46 1 . 16 42 . 14 89 34 33 289 . 4 32 11 104 14 52 Move 10602 | 44 675 170 238 157 1014 117 119 1663 561 289 2578 183 291 676 191 862 624 150 Hop 4 | . . . . . . . . . . . . . . . . . 2 2 Pick Up 154 | 2 19 1 1 1 23 6 9 36 5 6 22 . 2 8 . 9 3 1 Fast Attach 103 | 6 2 . . . 10 1 . 15 5 7 15 . . 5 . 17 11 9 Attach 71 | 1 2 1 1 . 7 3 1 18 1 . 11 . 4 4 . 15 1 1 Detach 16 | 1 1 . . . . 1 . 1 . . 5 . . 3 . 3 . 1 Swap 120 | . 4 . . . 23 1 7 22 12 5 13 1 3 8 1 19 1 . Drop 189 | 1 8 . 1 1 34 2 10 31 22 15 30 . . 12 . 16 6 . Fire 607 | . 58 11 . . 111 2 18 129 22 10 126 5 10 15 5 85 . . Melee 12 | . . . . . . . . 1 . . . . . 1 . . 10 . Ram 19 | . . . . . . . 2 . . . . . . . . . 17 . Kick 1 | . . . . . . . . . 1 . . . . . . . . . Crush . | . . . . . . . . . . . . . . . . . . . Escape Stasis 53 | . . . . . . . . 32 8 . . . . . . 13 . . Rewire 158 | . . . . . . . . . 98 . . . . 60 . . . . Trap . | . . . . . . . . . . . . . . . . . . . Miscellaneous . | . . . . . . . . . . . . . . . . . . . Route ------- -11/Junkyard -10/Materials (discovered 4 exits: [*Mat x3] / *Min) -10/Mines -10/Exiles -9/Mines -8/Materials (discovered 5 exits: *Fac x3 / [*Sto x2]) -7/Factory -7/DSF -6/Factory (discovered 2 exits: *Fac / *Ext) -6/Extension (discovered 2 exits: *Fac / *Cet) -6/Cetus (discovered 2 exits: *Fac / [*Arc]) -5/Factory (discovered 6 exits: *Fac x4 / *Upp x2) -5/Upper Caves -5/Upper Caves (discovered 2 exits: *Fac / *War) -5/Warlord -4/Proximity Caves -4/Factory -3/Research -3/Testing History --------- Turn | Location | Event 5 | -11/Junkyard | Discovered new exit (range 15) 79 | -11/Junkyard | Entered Materials 240 | -10/Materials | Discovered new exit (range 16) 301 | -10/Materials | Build established: Mutant 384 | -10/Materials | Discovered new exit (range 8) 507 | -10/Materials | Discovered new exit (range 15) 519 | -10/Materials | Identified exit to Mines 1217 | -10/Materials | Discovered new exit (range 13) 1398 | -10/Materials | Entered Mines 1693 | -10/Mines | Deemed a non-threat by the Exiles lab entrance 1695 | -10/Mines | Discovered new exit (range 5) 1701 | -10/Mines | Entered Exiles 1701 | -10/Exiles | Found Exiles lab abandoned 2066 | -10/Exiles | Discovered new exit (range 14) 2085 | -10/Exiles | Entered Mines 2093 | -9/Mines | Met a Derelict bent on vengeance 2111 | -9/Mines | Assisted by bots powering up and referring to "LRC-V3" 2332 | -9/Mines | Discovered new exit (range 8) 2341 | -9/Mines | Learned Materials emergency access door positions 2349 | -9/Mines | Found the Drone Emporium 2354 | -9/Mines | Entered Materials 2354 | -8/Materials | Accompanied by 2 allies 2354 | -8/Materials | Evolved 4 slots: Propulsion x2, Utility x2 2503 | -8/Materials | Discovered new exit (range 15) 2898 | -8/Materials | Build established: Scavenger-Mutant 3539 | -8/Materials | Discovered new exit (range 11) 3890 | -8/Materials | Discovered new exit (range 10) 3908 | -8/Materials | Identified exit to Factory 4412 | -8/Materials | Entered Factory 4412 | -7/Factory | Evolved 2 slots: Utility x1, Weapon x1 4617 | -7/Factory | Identified exit to DSF 4618 | -7/Factory | Entered DSF 4718 | -7/DSF | Additional patrols routed to DSF 4861 | -7/DSF | Discovered new exit (range 16) 4894 | -7/DSF | Entered Factory 4894 | -6/Factory | Evolved 2 slots: Propulsion x1, Utility x1 4922 | -6/Factory | Lost 4 parts (1p3n) 5154 | -6/Factory | Build established: Tank 5467 | -6/Factory | Lost 4 parts (1n1u2w) 5943 | -6/Factory | Lost 6 parts (2n1u3w) 6215 | -6/Factory | Build established: Scavenger-Gunner 6448 | -6/Factory | Lost 3 parts (1p1u1w) 6595 | -6/Factory | Discovered new exit (range 5) 6637 | -6/Factory | Identified exit to Factory 6994 | -6/Factory | First assault squad dispatched 7714 | -6/Factory | Discovered new exit (range 6) 7719 | -6/Factory | Entered Extension 7769 | -6/Extension | Rescued a captive Derelict 7893 | -6/Extension | Rescued a captive Derelict 7893 | -6/Extension | Rescued a captive Derelict 8022 | -6/Extension | Build established: Scavenger-Mutant 8123 | -6/Extension | Rescued A7 8161 | -6/Extension | Spotted B-75 Beast 8173 | -6/Extension | Spotted B-75 Beast 8188 | -6/Extension | Destroyed B-75 Beast 8194 | -6/Extension | Destroyed B-75 Beast 8361 | -6/Extension | Rescued a captive Derelict 8363 | -6/Extension | Rescued a captive Derelict 8373 | -6/Extension | Rescued a captive Derelict 8374 | -6/Extension | Rescued a captive Derelict 8463 | -6/Extension | Rescued a captive Derelict 8510 | -6/Extension | Rescued a captive Derelict 8511 | -6/Extension | Rescued a captive Derelict 8557 | -6/Extension | Discovered exit to Factory (range 10) 8558 | -6/Extension | Discovered new exit (range 6) 8635 | -6/Extension | Entered Cetus 8635 | -6/Cetus | Accompanied by 10 allies (A7) 8640 | -6/Cetus | Acquired a Cetus Manufacturing Module code from A7 8659 | -6/Cetus | Spotted Cetus Guard 8659 | -6/Cetus | Spotted Cetus Guard 8661 | -6/Cetus | Spotted Cetus Guard 8662 | -6/Cetus | Spotted Cetus Guard 8672 | -6/Cetus | Allies destroyed Cetus Guard 8674 | -6/Cetus | Allies destroyed Cetus Guard 8675 | -6/Cetus | Allies destroyed Cetus Guard 8676 | -6/Cetus | Allies destroyed Cetus Guard 8767 | -6/Cetus | Started Cetus Manufacturing Module 8779 | -6/Cetus | Escorted A7 to Cetus Mainframe 8792 | -6/Cetus | Manufactured an Enhanced Grunt 8817 | -6/Cetus | Manufactured an Enhanced Grunt 8828 | -6/Cetus | Cetus Manufacturing Module disabled 8910 | -6/Cetus | Discovered new exit (range 16) 8946 | -6/Cetus | Spotted Cetus Guard 8947 | -6/Cetus | Spotted Cetus Guard 8951 | -6/Cetus | Spotted Cetus Guard 8952 | -6/Cetus | Spotted Cetus Guard 8958 | -6/Cetus | Allies destroyed Cetus Guard 8962 | -6/Cetus | Allies destroyed Cetus Guard 8963 | -6/Cetus | Discovered exit to Factory (range 16) 8965 | -6/Cetus | Allies destroyed Cetus Guard 8974 | -6/Cetus | Allies destroyed Cetus Guard 8976 | -6/Cetus | Met Revision 17 9073 | -6/Cetus | Entered Factory 9073 | -5/Factory | Accompanied by 5 allies (A7) 9073 | -5/Factory | Evolved 2 slots: Utility x2 9078 | -5/Factory | Received a hacking code to weaken MAIN.C 9152 | -5/Factory | Build established: Scavenger-Gunner 9156 | -5/Factory | Spotted B-75 Beast 9512 | -5/Factory | Discovered new exit (range 9) 9907 | -5/Factory | Discovered new exit (range 5) 10197 | -5/Factory | Discovered new exit (range 7) 10273 | -5/Factory | First assault squad dispatched 10279 | -5/Factory | Repaired Cld. Particle Cannon? 10943 | -5/Factory | Discovered new exit (range 11) 11014 | -5/Factory | Discovered new exit (range 11) 11216 | -5/Factory | Discovered new exit (range 22) 11323 | -5/Factory | Build established: Gunner 11712 | -5/Factory | Build established: Scavenger-Gunner 11878 | -5/Factory | System corruption reached 10% 12797 | -5/Factory | Allied Derelicts emerged from ambush trap array 12862 | -5/Factory | Identified exit to Factory 12949 | -5/Factory | Identified exit to Upper Caves 12953 | -5/Factory | Entered Upper Caves 12984 | -5/Upper Caves | Spotted B-75 Beast 13085 | -5/Upper Caves | Encountered a Warlord checkpoint 13108 | -5/Upper Caves | Identified exit to Upper Caves 13145 | -5/Upper Caves | Attracted the attention of an 0b10 checkpoint 13192 | -5/Upper Caves | Entered another Upper Caves area 13205 | -5/Upper Caves | Encountered a Warlord checkpoint 13296 | -5/Upper Caves | Discovered exit to Factory (range 13) 13365 | -5/Upper Caves | Destroyed 8 combat bots 13435 | -5/Upper Caves | Identified exit to Warlord 13591 | -5/Upper Caves | Entered Warlord 13634 | -5/Warlord | System corruption cleaned by Quarantine Array 14062 | -5/Warlord | Visited the Vortex Lab 14075 | -5/Warlord | Met EX-DEC 14078 | -5/Warlord | Warlord's base attacked by MAIN.C 14079 | -5/Warlord | Found Prototype Piercing Weapon 14084 | -5/Warlord | Found Prototype Energy Gun 14268 | -5/Warlord | Met Warlord 14277 | -5/Warlord | Identified Vortex Lance 14311 | -5/Warlord | Found Prototype Processor 14313 | -5/Warlord | Found Prototype Device 14313 | -5/Warlord | Identified Thermal Barrier 14325 | -5/Warlord | Found Prototype Reactor 14428 | -5/Warlord | Warlord forces counterattacked 14539 | -5/Warlord | Opened side exit 14563 | -5/Warlord | Discovered new exit (range 9) 14578 | -5/Warlord | Spotted Striker 14578 | -5/Warlord | Entered Proximity Caves 14578 | -4/Proximity Caves | Accompanied by 2 allies 14836 | -4/Proximity Caves | Entered Factory 14836 | -4/Factory | Accompanied by 1 ally 14836 | -4/Factory | Evolved 2 slots: Power x1, Propulsion x1 15215 | -4/Factory | Destroyed 10 combat bots 15439 | -4/Factory | Spotted B-86 Titan 15586 | -4/Factory | First assault squad dispatched 15756 | -4/Factory | Lost 6 parts (1p2n1u2w) 15917 | -4/Factory | Released all parts (7) 15930 | -4/Factory | Destroyed 8 combat bots 15946 | -4/Factory | Lost 11 parts (2p5n2u2w) 16035 | -4/Factory | Discovered new exit (range 9) 16108 | -4/Factory | Entered Research 16108 | -3/Research | Evolved 2 slots: Propulsion x1, Utility x1 16161 | -3/Research | Found Quantum Capacitor 16207 | -3/Research | Found Prototype Processor 16207 | -3/Research | Identified Exp. Terrain Scan Processor 16234 | -3/Research | Build established: Mutant 16321 | -3/Research | Spotted B-86 Titan 16517 | -3/Research | Discovered new exit (range 15) 16527 | -3/Research | Lost 4 parts (2n2u) 16529 | -3/Research | Core integrity fell below 50% 16535 | -3/Research | Entered Testing 16608 | -3/Testing | Identified Vortex Chain Reactor 16632 | -3/Testing | Found Prototype Processor 16632 | -3/Testing | Identified Spectral Analyzer 16634 | -3/Testing | Found Spectral Analyzer 16635 | -3/Testing | Core integrity fell below 20% 16645 | -3/Testing | Core destroyed Last Messages --------------- 16608_ Identified Vortex Chain Reactor. 16609_ Acquired Unknown Device. 16609_ Identified Adv. Actuator Array. 16610_ Acquired Adv. Actuator Array. 16627_ Connecting with Terminal... 16627_ Current location identified: Testing 16631_ O-32 Director: "IFF HANDSHAKE FAILED. SECURING TERMINAL." 16632_ Acquired Prototype Processor. 16632_ Identified Spectral Analyzer. 16632_ Malfunction: Heat surge (+322). 16634_ Acquired Spectral Analyzer. 16635_ Overheating: Core damaged (-182). 16635_ Discarded Faulty Spectral Analyzer. 16637_ Power failure, Vortex Chain Reactor shutdown. 16637_ System corrupted: Heat flow error (+255). 16640_ Overheating: Energy bleed (-81). 16642_ ALERT: Hostiles spotted, dispatching reinforcements to Terminal T007. 16643_ Overheating: Core damaged (-169). 16645_ Overheating: Core damaged (-156). Map ----- +----------------------------------------------------+ | | | | | | | | | | | | | | | | | | | | | | | | | | | | | | | | | | | | | | | | | | | ????????????########################?????????????? | | ???????????# ! # #?????????????? | | ???????????# """ " # ! """" #?????????????? | | ????????????] """ """ # """" #?????????????? | | ??????????????""" G +!@ """" #?????????????? | | ????????????????" """ # """" #?????????????? | | ?????????????????? " # #?????????????? | | ???????????????????? # #?????????????? | | ??????????????########+######+##+###?????????????? | | ?############## #???????????????? | | ?# # #???????????????? | | ?# "" # #???????????????? | | ?# """# #?????????? | | ?# """ T"# ################## #?????????? | | ?# """ """# #?????????????????????????????? | | ?# """ "" # ########??????????????????????? | | ?# # #??????????????????????? | | ?# """ """ + #??????????????????????? | | ?# """ """ # #??????????????????????? | | ?# """ """ # #??????????????????????? | | ?# # ### #??????????????????????? | | ?# # #?? #??????????????????????? | | ?############## #??? #??????????????????????? | | ??????????????# #???? #??????????????????????? | | ??????????????# #????? #??????????????????????? | | ??????????????# #????? #??????????????????????? | | ?????########?# #??????#??????????????????????? | | ?????# *?# #?????????????????????????????? | | ?????#"" # #?????????????????????????????? | +----------------------------------------------------+ Best States ------------- Heat Dissipation 74 Coolant Potential 80 Energy Generation 55 Energy Capacity 700 Matter Stores 300 Matter Capacity 300 Sight Range 24 Terrain Scan Density 1010 Jamming Range 16 Armor Coverage 600 Core Shielding 30 Propulsion Shielding 33 Utility Shielding 66 Weapon Shielding 33 Evasion (%) 66 Targeting Accuracy 16 Melee Accuracy 12 Armor Integrity Analysis 30 Recoil Reduction 4 Kinecelleration 30 Offensive Hacking 12 Item Schematics ----------------- None Robot Schematics ------------------ None Fabricated ------------ Nothing Alien Tech Used ----------------- None Achievements -------------- None Challenges ------------ None Game ------ Seed GrapheneTargetingTerminator Manual? 0 Play Time 03:17:31 Cumulative 356.8 hours Start 2023.03.27 @ 22:28:33 End 2023.03.29 @ 21:34:27 Sessions 7 Manual Loads 0 Difficulty Rogue Special Mode None Game No. 428 Rogue 428 Adventurer 0 Explorer 0 Win Type - Total 36 Types 26/0/7/3/0/0/0/0/0 Lore% 87 Gallery% 81 Achievement% 59 Wizard Run 0 Options --------- ASCII 0 Keyboard 1 Movement Numpad Keybinds 0 Fullscreen 1 Font 24/Smallcaps Map View 76x50 Tactical HUD 1 Map Filters NONE Filters NONE Steam 1 RUN: aea2e314-57cc-4c98-b491-55256a79805c